Workbook

Sheet Trenching Calculations - New
A2: 1. Determine the total number of pipes in each trench segment (including spares) and the length of the segment and input into the yellow cell below.
A3: 2. SPI Line Item 15-1.a, 151.b, 15.1.c, and 15.1.d will be calculated automatically and displayed in at the bottom of the table. This calculation is based upon the total number of pipes in each trench segment. For trench segments greater than 30 pipes, the table will automatically take the number of pipes in the trench segment, subtract 30 pipes, calculate the number of 10 pipe bundles, and find the equivalent length of the trench based upon the 10 pipe bundles. Calculation = Length of Trench (feet) x ROUNDED UP[(Number of Pipes in Trench - 30 Pipes) / 10 Pipe Bundles]
A6: Trench Segment | B6: Number of Pipes in Trench | C6: Length of Trench Segment (feet) | D6: SPI Item 15-1.a. Trenching Installation of trench containing 1-10 Plumbing Lines (linear foot of trench) | E6: SPI Item 15-1.b. Trenching Installation of trench containing 11-20 Plumbing Lines (linear foot of trench) | F6: SPI Item 15-1.c. Trenching Installation of trench containing 21-30 Plumbing Lines (linear foot of trench) | G6: Additional pipes >30 | H6: ADDITIONAL bundle of 1-10 lines | I6: SPI Item 15-1.d. Trenching Installation of additional bundle of 1-10 lines greater than 30 lines in trench (linear foot of trench) | J6: Notes | K6: TRUE
A7: A | D7: =IF($B7<=10,$C7,0) -> 0 | E7: =IF(($B7>10)*AND($B7<=20),$C7,0) -> 0 | F7: =IF(($B7>20),$C7,0) -> 0 | G7: =IF(B7>30,(B7-30),0) -> 0 | H7: =ROUNDUP($G7/10,0) -> 0 | I7: =C7*H7 -> 0 | K7: =IF(OR(B7<>"",C7<>""),TRUE,FALSE) -> FALSE
A8: B | D8: 0 | E8: 0 | F8: 0 | G8: 0 | H8: 0 | I8: 0 | K8: FALSE
A9: C | D9: 0 | E9: 0 | F9: 0 | G9: 0 | H9: 0 | I9: 0 | K9: FALSE
A10: D | D10: 0 | E10: 0 | F10: 0 | G10: 0 | H10: 0 | I10: 0 | K10: FALSE
A11: E | D11: 0 | E11: 0 | F11: 0 | G11: 0 | H11: 0 | I11: 0 | K11: FALSE
A12: F | D12: 0 | E12: 0 | F12: 0 | G12: 0 | H12: 0 | I12: 0 | K12: FALSE
A13: G | D13: 0 | E13: 0 | F13: 0 | G13: 0 | H13: 0 | I13: 0 | K13: FALSE
A14: H | D14: 0 | E14: 0 | F14: 0 | G14: 0 | H14: 0 | I14: 0 | K14: FALSE
A15: I | D15: 0 | E15: 0 | F15: 0 | G15: 0 | H15: 0 | I15: 0 | K15: FALSE
A16: J | D16: 0 | E16: 0 | F16: 0 | G16: 0 | H16: 0 | I16: 0 | K16: FALSE
A17: K | D17: 0 | E17: 0 | F17: 0 | G17: 0 | H17: 0 | I17: 0 | K17: FALSE
A18: L | D18: 0 | E18: 0 | F18: 0 | G18: 0 | H18: 0 | I18: 0 | K18: FALSE
A19: M | D19: 0 | E19: 0 | F19: 0 | G19: 0 | H19: 0 | I19: 0 | K19: FALSE
A20: N | D20: 0 | E20: 0 | F20: 0 | G20: 0 | H20: 0 | I20: 0 | K20: FALSE
A21: O | D21: 0 | E21: 0 | F21: 0 | G21: 0 | H21: 0 | I21: 0 | K21: FALSE
A22: P | D22: 0 | E22: 0 | F22: 0 | G22: 0 | H22: 0 | I22: 0 | K22: FALSE
A23: Q | D23: 0 | E23: 0 | F23: 0 | G23: 0 | H23: 0 | I23: 0 | K23: FALSE
A24: R | D24: 0 | E24: 0 | F24: 0 | G24: 0 | H24: 0 | I24: 0 | K24: FALSE
A25: S | D25: 0 | E25: 0 | F25: 0 | G25: 0 | H25: 0 | I25: 0 | K25: FALSE
A26: T | D26: 0 | E26: 0 | F26: 0 | G26: 0 | H26: 0 | I26: 0 | K26: FALSE
A27: U | D27: 0 | E27: 0 | F27: 0 | G27: 0 | H27: 0 | I27: 0 | K27: FALSE
A28: V | D28: 0 | E28: 0 | F28: 0 | G28: =IF(B28>30,(B28-30),0) -> 0 | H28: 0 | I28: =C28*H28 -> 0 | K28: =IF(OR(B28<>"",C28<>""),TRUE,FALSE) -> FALSE
A29: W | D29: 0 | E29: 0 | F29: 0 | G29: 0 | H29: 0 | I29: 0 | K29: FALSE
A30: X | D30: 0 | E30: 0 | F30: 0 | G30: 0 | H30: 0 | I30: 0 | K30: FALSE
A31: Y | D31: 0 | E31: 0 | F31: 0 | G31: 0 | H31: 0 | I31: 0 | K31: FALSE
A32: Z | D32: 0 | E32: 0 | F32: 0 | G32: 0 | H32: 0 | I32: 0 | K32: FALSE
D33: 0 | E33: 0 | F33: 0 | G33: 0 | H33: 0 | I33: 0 | K33: FALSE
D34: 0 | E34: 0 | F34: 0 | G34: 0 | H34: 0 | I34: 0 | K34: FALSE
D35: 0 | E35: 0 | F35: 0 | G35: 0 | H35: 0 | I35: 0 | K35: FALSE
D36: 0 | E36: 0 | F36: 0 | G36: 0 | H36: 0 | I36: 0 | K36: FALSE
D37: 0 | E37: 0 | F37: 0 | G37: 0 | H37: 0 | I37: 0 | K37: FALSE
D38: 0 | E38: 0 | F38: 0 | G38: 0 | H38: 0 | I38: 0 | K38: FALSE
D39: 0 | E39: 0 | F39: 0 | G39: 0 | H39: 0 | I39: 0 | K39: FALSE
D40: 0 | E40: 0 | F40: 0 | G40: 0 | H40: 0 | I40: 0 | K40: FALSE
D41: 0 | E41: 0 | F41: 0 | G41: 0 | H41: 0 | I41: 0 | K41: FALSE
D42: 0 | E42: 0 | F42: 0 | G42: 0 | H42: 0 | I42: 0 | K42: FALSE
D43: 0 | E43: 0 | F43: 0 | G43: 0 | H43: 0 | I43: 0 | K43: FALSE
D44: 0 | E44: 0 | F44: 0 | G44: 0 | H44: 0 | I44: 0 | K44: FALSE
D45: 0 | E45: 0 | F45: 0 | G45: 0 | H45: 0 | I45: 0 | K45: FALSE
D46: 0 | E46: 0 | F46: 0 | G46: 0 | H46: 0 | I46: 0 | K46: FALSE
D47: 0 | E47: 0 | F47: 0 | G47: 0 | H47: 0 | I47: 0 | K47: FALSE
D48: 0 | E48: 0 | F48: 0 | G48: 0 | H48: 0 | I48: 0 | K48: FALSE
D49: 0 | E49: 0 | F49: 0 | G49: 0 | H49: 0 | I49: 0 | K49: FALSE
D50: 0 | E50: 0 | F50: 0 | G50: 0 | H50: 0 | I50: 0 | K50: FALSE
D51: 0 | E51: 0 | F51: 0 | G51: 0 | H51: 0 | I51: 0 | K51: FALSE
D52: 0 | E52: 0 | F52: 0 | G52: 0 | H52: 0 | I52: 0 | K52: FALSE
D53: 0 | E53: 0 | F53: 0 | G53: 0 | H53: 0 | I53: 0 | K53: FALSE
D54: 0 | E54: 0 | F54: 0 | G54: 0 | H54: 0 | I54: 0 | K54: FALSE
D55: 0 | E55: 0 | F55: 0 | G55: 0 | H55: 0 | I55: 0 | K55: FALSE
D56: 0 | E56: 0 | F56: 0 | G56: 0 | H56: 0 | I56: 0 | K56: FALSE
D57: 0 | E57: 0 | F57: 0 | G57: 0 | H57: 0 | I57: 0 | K57: FALSE
D58: 0 | E58: 0 | F58: 0 | G58: 0 | H58: 0 | I58: 0 | K58: FALSE
D59: 0 | E59: 0 | F59: 0 | G59: 0 | H59: 0 | I59: 0 | K59: FALSE
D60: 0 | E60: 0 | F60: 0 | G60: 0 | H60: 0 | I60: 0 | K60: FALSE
D61: 0 | E61: 0 | F61: 0 | G61: 0 | H61: 0 | I61: 0 | K61: FALSE
D62: 0 | E62: 0 | F62: 0 | G62: 0 | H62: 0 | I62: 0 | K62: FALSE
D63: 0 | E63: 0 | F63: 0 | G63: 0 | H63: 0 | I63: 0 | K63: FALSE
D64: 0 | E64: 0 | F64: 0 | G64: 0 | H64: 0 | I64: 0 | K64: FALSE
D65: 0 | E65: 0 | F65: 0 | G65: 0 | H65: 0 | I65: 0 | K65: FALSE
D66: 0 | E66: 0 | F66: 0 | G66: 0 | H66: 0 | I66: 0 | K66: FALSE
D67: 0 | E67: 0 | F67: 0 | G67: 0 | H67: 0 | I67: 0 | K67: FALSE
D68: 0 | E68: 0 | F68: 0 | G68: 0 | H68: 0 | I68: 0 | K68: FALSE
A69: Actual Footage of Trench | C69: =SUM(C7:C68) -> 0 | D69: =SUM(D7:D68) -> 0 | E69: =SUM(E7:E68) -> 0 | F69: =SUM(F7:F68) -> 0 | I69: =SUM(I7:I68) -> 0 | K69: TRUE
D70: SPI Item 15-1.a. | E70: SPI Item 15-1.b. | F70: SPI Item 15-1.c. | I70: SPI Item 15-1.d. | K70: TRUE

Sheet Example Trenching Calculations
A2: 1. Determine the total number of pipes in each trench segment (including spares) and the length of the segment and input into the yellow cell below.
A3: 2. SPI Line Item 15-1.a, 151.b, 15.1.c, and 15.1.d will be calculated automatically and displayed in at the bottom of the table. This calculation is based upon the total number of pipes in each trench segment. For trench segments greater than 30 pipes, the table will automatically take the number of pipes in the trench segment, subtract 30 pipes, calculate the number of 10 pipe bundles, and find the equivalent length of the trench based upon the 10 pipe bundles. Calculation = Length of Trench (feet) x ROUNDED UP[(Number of Pipes in Trench - 30 Pipes) / 10 Pipe Bundles]
A6: Trench Segment | B6: Number of Pipes in Trench | C6: Length of Trench Segment (feet) | D6: SPI Item 15-1.a. Trenching Installation of trench containing 1-10 Plumbing Lines (linear foot of trench) | E6: SPI Item 15-1.b. Trenching Installation of trench containing 11-20 Plumbing Lines (linear foot of trench) | F6: SPI Item 15-1.c. Trenching Installation of trench containing 21-30 Plumbing Lines (linear foot of trench) | G6: Additional pipes >30 | H6: ADDITIONAL bundle of 1-10 lines | I6: SPI Item 15-1.d. Trenching Installation of additional bundle of 1-10 lines greater than 30 lines in trench (linear foot of trench) | J6: Notes
A7: A | B7: 26 | C7: 48 | D7: =IF($B7<=10,$C7,0) -> 0 | E7: =IF(($B7>10)*AND($B7<=20),$C7,0) -> 0 | F7: =IF(($B7>20),$C7,0) -> 48 | G7: =IF(B7>30,(B7-30),0) -> 0 | H7: =ROUNDUP($G7/10,0) -> 0 | I7: =C7*H7 -> 0 | J7: Leaving Equipment Compound
A8: B | B8: 1 | C8: 28 | D8: 28 | E8: 0 | F8: 0 | G8: 0 | H8: 0 | I8: 0 | J8: Trench to MPX-1
A9: C | B9: 25 | C9: 52 | D9: 0 | E9: 0 | F9: 52 | G9: 0 | H9: 0 | I9: 0 | J9: All pipes not including MPX-1
A10: D | B10: 2 | C10: 52 | D10: 52 | E10: 0 | F10: 0 | G10: 0 | H10: 0 | I10: 0 | J10: MPX-6 and Effluent Discharge
A11: E | B11: 23 | C11: 16 | D11: 0 | E11: 0 | F11: 16 | G11: 0 | H11: 0 | I11: 0
A12: F | B12: 1 | C12: 8 | D12: 8 | E12: 0 | F12: 0 | G12: 0 | H12: 0 | I12: 0 | J12: Trench to AS-10
A13: G | B13: 22 | C13: 10 | D13: 0 | E13: 0 | F13: 10 | G13: 0 | H13: 0 | I13: 0
A14: H | B14: 7 | C14: 118 | D14: 118 | E14: 0 | F14: 0 | G14: 0 | H14: 0 | I14: 0 | J14: Trench including AS-1, AS-9, AS-7, AS-8, AS-16, AS-17, and MPX-5
A15: I | B15: 15 | C15: 24 | D15: 0 | E15: 24 | F15: 0 | G15: 0 | H15: 0 | I15: 0
A16: J | B16: 3 | C16: 40 | D16: 40 | E16: 0 | F16: 0 | G16: 0 | H16: 0 | I16: 0 | J16: Trench including AS-11, AS-2, and MPX-2
A17: K | B17: 12 | C17: 18 | D17: 0 | E17: 18 | F17: 0 | G17: 0 | H17: 0 | I17: 0
A18: L | B18: 8 | C18: 146 | D18: 146 | E18: 0 | F18: 0 | G18: 0 | H18: 0 | I18: 0 | J18: Trench including AS-18, AS-14, AS-4, AS-15, AS-5, AS-6, MPX-4, and MPX-7
A19: M | B19: 4 | C19: 56 | D19: 56 | E19: 0 | F19: 0 | G19: 0 | H19: 0 | I19: 0 | J19: Trench including AS-12, AS-13, AS-3, and MPX-3
A20: N | C20: 0 | D20: 0 | E20: 0 | F20: 0 | G20: 0 | H20: 0 | I20: 0
A21: O | C21: 0 | D21: 0 | E21: 0 | F21: 0 | G21: 0 | H21: 0 | I21: 0
A22: P | B22: 50 | C22: 100 | D22: 0 | E22: 0 | F22: 100 | G22: 20 | H22: 2 | I22: 200 | J22: MISC TEST CALCULATIONS NOT IN FIGURE
A23: Q | B23: 30 | C23: 100 | D23: 0 | E23: 0 | F23: 100 | G23: 0 | H23: 0 | I23: 0 | J23: MISC TEST CALCULATIONS NOT IN FIGURE
A24: R | B24: 32 | C24: 100 | D24: 0 | E24: 0 | F24: 100 | G24: 2 | H24: 1 | I24: 100 | J24: MISC TEST CALCULATIONS NOT IN FIGURE
A25: S | B25: 39 | C25: 100 | D25: 0 | E25: 0 | F25: 100 | G25: 9 | H25: 1 | I25: 100 | J25: MISC TEST CALCULATIONS NOT IN FIGURE
A26: T | B26: 42 | C26: 100 | D26: 0 | E26: 0 | F26: 100 | G26: 12 | H26: 2 | I26: 200 | J26: MISC TEST CALCULATIONS NOT IN FIGURE
A27: U | B27: 57 | C27: 100 | D27: 0 | E27: 0 | F27: 100 | G27: 27 | H27: 3 | I27: 300 | J27: MISC TEST CALCULATIONS NOT IN FIGURE
A28: V | B28: 60 | C28: 100 | D28: 0 | E28: 0 | F28: 100 | G28: 30 | H28: 3 | I28: 300 | J28: MISC TEST CALCULATIONS NOT IN FIGURE
A29: Actual Footage of Trench | C29: =SUM(C7:C28) -> 1316 | D29: =SUM(D7:D28) -> 448 | E29: =SUM(E7:E28) -> 42 | F29: =SUM(F7:F28) -> 826 | I29: =SUM(I7:I28) -> 1200
A30: 10% Contingent (rounded) | C30: =ROUND((C29*0.1),0) -> 132 | D30: =ROUND((D29*0.1),0) -> 45 | E30: =ROUND((E29*0.1),0) -> 4 | F30: =ROUND((F29*0.1),0) -> 83 | I30: =ROUND((I29*0.1),0) -> 120
A31: Total Scoped Units | C31: =SUM(C29:C30) -> 1448 | D31: =SUM(D29:D30) -> 493 | E31: =SUM(E29:E30) -> 46 | F31: =SUM(F29:F30) -> 909 | I31: =SUM(I29:I30) -> 1320
D32: SPI Item 15-1.a. | E32: SPI Item 15-1.b. | F32: SPI Item 15-1.c. | I32: SPI Item 15-1.d.

Sheet Trenching Calculations - OLD
A2: CALCULATIONS FOR OLD CONTRACT. ONLY USE IF THE PREVIOUS CONTRACT RATES ARE IN EFFECT. USE NEW TRENCHING CALCULATIONS TAB FOR CURRENT WORK SCOPES
A3: 1. Determine scale based on one inch from Construction Drawing
A4: 2. Input the number of feet into the yellow cell for the Construction Drawing scale below.
A5: 3. Determine the total number of pipes (including spares) that exit the equipment compound and input into the yellow cell below
A6: 4. Determine the total number of segments and total number of pipes in each trench segment and input into the yellow cell below.
A7: 5. Measure the length of each trench segment and place in the yellow cell below.
A8: 6. SPI Line Item 15-1 will be calculated automatically and displayed in blue at the bottom of the table. This calculation is based upon the total length of the trench (independent of pipes).
A9: 7. SPI Line Item 15-2 will be calculated automatically and displayed in green at the bottom of the table. This calculation is based upon the total number of pipes in each trench segment. For trench segments less than 8 pipes, a value of 0 will be displayed. For trench segments greater than 8 pipes, the table will automatically take the number of pipes in the trench segment, subtract 8 pipes, calculate the number of pipe pairs, and find the equivalent length of the trench based upon the pipe pairs. Calculation = Length of Trench (feet) x (Number of Pipes in Trench - 8 Pipes) / 2 Pipes per Pair
B11: Scale: | C11: 1 inch = | D11: 20 | E11: feet
A14: Trench Segment | B14: Number of Pipes in Trench | C14: Measured Length of Trench Segment (in) | D14: Length of Trench Segment (feet) | E14: Length of Trench Segment >8 pipes (feet) | F14: Notes | G14: TRUE
A15: A | B15: 26 | C15: 2.4 | D15: =$D$11*C15 -> 48 | E15: =IF(B15>8,D15*(B15-8)*0.5,0) -> 432 | F15: Leaving Equipment Compound | G15: =IF(OR(B15<>"",C15<>""),TRUE,FALSE) -> TRUE
A16: B | B16: 1 | C16: 1.4 | D16: 28 | E16: 0 | F16: Trench to MPX-1 | G16: =IF(OR(B16<>"",C16<>""),TRUE,FALSE) -> TRUE
A17: C | B17: 25 | C17: 2.6 | D17: 52 | E17: 442 | F17: All pipes not including MPX-1 | G17: TRUE
A18: D | B18: 2 | C18: 2.6 | D18: 52 | E18: 0 | F18: MPX-6 and Effluent Discharge | G18: TRUE
A19: E | B19: 23 | C19: 0.8 | D19: 16 | E19: 120 | G19: TRUE
A20: F | B20: 1 | C20: 0.4 | D20: 8 | E20: 0 | F20: Trench to AS-10 | G20: TRUE
A21: G | B21: 22 | C21: 0.5 | D21: 10 | E21: 70 | G21: TRUE
A22: H | B22: 7 | C22: 5.9 | D22: 118 | E22: 0 | F22: Trench including AS-1, AS-9, AS-7, AS-8, AS-16, AS-17, and MPX-5 | G22: TRUE
A23: I | B23: 15 | C23: 1.2 | D23: 24 | E23: 84 | G23: TRUE
A24: J | B24: 3 | C24: 2 | D24: 40 | E24: 0 | F24: Trench including AS-11, AS-2, and MPX-2 | G24: TRUE
A25: K | B25: 12 | C25: 0.9 | D25: 18 | E25: 36 | G25: TRUE
A26: L | B26: 8 | C26: 7.3 | D26: 146 | E26: 0 | F26: Trench including AS-18, AS-14, AS-4, AS-15, AS-5, AS-6, MPX-4, and MPX-7 | G26: TRUE
A27: M | B27: 4 | C27: 2.8 | D27: 56 | E27: 0 | F27: Trench including AS-12, AS-13, AS-3, and MPX-3 | G27: TRUE
A28: N | D28: 0 | E28: 0 | G28: FALSE
A29: O | D29: 0 | E29: 0 | G29: FALSE
A30: P | D30: 0 | E30: 0 | G30: FALSE
A31: Q | D31: 0 | E31: 0 | G31: FALSE
A32: R | D32: 0 | E32: 0 | G32: FALSE
A33: S | D33: 0 | E33: 0 | G33: FALSE
A34: T | D34: 0 | E34: 0 | G34: FALSE
A35: U | D35: 0 | E35: 0 | G35: FALSE
A36: V | G36: FALSE
A37: W | G37: FALSE
A38: X | G38: FALSE
A39: Y | G39: FALSE
A40: Z | G40: FALSE
G41: FALSE
G42: FALSE
G43: FALSE
G44: FALSE
G45: FALSE
G46: FALSE
G47: FALSE
G48: FALSE
G49: FALSE
G50: FALSE
G51: FALSE
G52: FALSE
G53: FALSE
G54: FALSE
G55: FALSE
G56: FALSE
G57: FALSE
G58: FALSE
G59: FALSE
G60: FALSE
G61: FALSE
G62: FALSE
G63: FALSE
G64: FALSE
G65: FALSE
G66: FALSE
G67: FALSE
G68: FALSE
G69: FALSE
G70: FALSE
G71: FALSE
G72: FALSE
G73: FALSE
G74: FALSE
G75: FALSE
G76: FALSE
A77: SPI Line Item 15-1. Trenching and Installation of Plumbing (and Electrical) Lines in Trench - up to 8 plumbing lines [Includes an extra 20%] | D77: =SUM(D15:D76)*1.2 -> 739.2 | E77: =SUM(E15:E76)*1.2 -> 1420.8 | F77: SPI Line Item 15-2. Trenching and Installation - Additional 2 plumbing lines [Includes an extra 20%] | G77: TRUE
